Cogmind - Beta 16 @@@ ROGUE MODE // 2025.11.05 @ 14:08:21 Player: ChromeKnight Result: Destroyed by DF-NVX(j) with Overtuned Pulse Rifle Performance ------------- Evolutions (0) 0 Regions Visited (4) 800 Robots Destroyed (1) 5 Value Destroyed (49) 49 Prototype IDs (8) 160 Alien Tech Used (0) 0 Bonus (800) 800 TOTAL SCORE: 1814 Bonus ------- Registered with UFD 300 Met Optimus in HQ 500 Cogmind --------- Core Integrity 0/250 Matter 300/300 Energy 99/100 System Corruption 0% Temperature Cool (92) Movement Hovering (116) Ox1 Location -9/Scraptown Parts ------- > --- POWER (1) -------- (None) > --- PROPULSION (2) --- Airjet Airjet > --- UTILITY (2) ------ Large Storage Unit Makeshift Light Armor Plating > --- WEAPON (2) ------- Compact Gauss Rifle Makeshift Sword > --- INVENTORY (15) --- Assembled Alloy Leg Airjet Airjet Airjet Expert System Master Drone Bay (1/1) Vortex Trap DRS Beacon (Ready) Peak State ------------ > --- POWER ------------ (None) > --- PROPULSION ------- Airjet Airjet > --- UTILITY ---------- Scrap Suit > --- WEAPON ----------- Compact Gauss Rifle Makeshift Sword > --- INVENTORY -------- Assembled Alloy Leg Airjet Expert System Master Drone Bay Vortex Trap [Rating: 26] Favorites ----------- Power Ion Engine Engine Ion Engine Propulsion Flight Unit Treads Light Treads Hover Unit Airjet Flight Unit Flight Unit Utility Structural Scanner Device Structural Scanner Storage Large Storage Unit Protection Makeshift Light Armor Plating Weapon Makeshift Sword Energy Gun EM Pulse Gun Ballistic Gun Compact Gauss Rifle Launcher Shock Bomb Launcher Slashing Weapon Makeshift Sword Build | -11 -10 -10 -10 -9 ------- Run | Yrd Mat Min Sub Scr Slots Evolved . | . . . . . Power . | . . . . . Propulsion . | . . . . . Utility . | . . . . . Weapon . | . . . . . Parts Attached 25 | 6 4 3 . 12 Power 1 | 1 . . . . Engine 1 | 1 . . . . Core . | . . . . . Reactor . | . . . . . Propulsion 14 | 2 3 2 . 7 Treads 4 | 2 . . . 2 Leg . | . . . . . Wheel . | . . . . . Hover 2 | . . . . 2 Flight 8 | . 3 2 . 3 Utility 5 | 1 1 . . 3 Device 2 | . 1 . . 1 Storage 2 | 1 . . . 1 Processor . | . . . . . Hackware . | . . . . . Protection 1 | . . . . 1 Artifact . | . . . . . Weapon 5 | 2 . 1 . 2 Energy Gun 2 | 2 . . . . Energy Cannon . | . . . . . Ballistic Gun 1 | . . . . 1 Ballistic Cannon . | . . . . . Launcher 1 | . . . . 1 Special Weapon . | . . . . . Impact Weapon . | . . . . . Slashing Weapon 1 | . . 1 . . Piercing Weapon . | . . . . . Special Melee Weapon . | . . . . . Unidentified Prototypes . | . . . . . Parts Lost 2 | . 1 1 . . Power . | . . . . . Propulsion 1 | . 1 . . . Utility . | . . . . . Weapon 1 | . . 1 . . Highest Loss Streak 1 | . 1 1 . . To Critical Strikes . | . . . . . Average Backups 8 | . 4 7 7 9 Power . | . . . . . Propulsion 3 | . 4 7 7 3 Utility 3 | . . . . 3 Weapon . | . . . . . Tool/Special . | . . . . . Unused Backups 26 | . . . . 26 Power 2 | . . . . 2 Propulsion 2 | . . . . 2 Utility 16 | . . . . 16 Weapon 5 | . . . . 5 Tool/Special 1 | . . . . 1 Average Slot Usage (%) 75 | . 76 64 71 76 Treads 12 | . 10 7 . 13 Flight 14 | . 16 20 28 13 Device 13 | . 7 14 14 13 Storage 13 | . 14 14 14 13 Launcher 5 | . . . . 5 Slashing Weapon 13 | . . 1 14 14 Peak Build Rating 26 | 6 6 8 9 26 Average Rating 12 | 4 5 5 8 13 On Entrance 5 | . 6 5 8 9 Avg Prop Armor Cover (%) 4 | . . . . 4 Naked Turns . | . . . . . Heaviest Build 29 | 13 13 8 8 29 Greatest Support 40 | 40 40 40 8 40 Greatest Overweight (x) 3 | . 1 . . 3 Average Overweight (x) . | . . . . . Largest Inventory Capacity 15 | 8 8 8 8 15 Average Capacity 12 | 6 8 8 8 13 Most Carried 15 | . 8 8 8 15 Average Carried 10 | . 4 7 7 11 Final Capacity 15 | 8 8 8 8 15 Final Carried 8 | . 7 7 8 8 Scrap Suit Usage (%) 1 | . . . . 2 Class Distribution -------------------- 96% | Mutant 3% | Scrapper Dominant Class ---------------- Mutant | -10/Materials Mutant | -10/Mines Mutant | -10/Subcaves Mutant | -9/Scraptown Resources | -11 -10 -10 -10 -9 ----------- Run | Yrd Mat Min Sub Scr Matter Collected 447 | 229 34 . 42 142 Remotely . | . . . . . Salvage Created 129 | . . . 59 70 Parts 5 | . . . 2 3 Haulers Intercepted . | . . . . . Recyclers Shooed . | . . . . . Parts Field Recycled . | . . . . . Retrieved Matter . | . . . . . Parts Self-Destructed . | . . . . . Prevented . | . . . . . Parts Restored . | . . . . . Kills | -11 -10 -10 -10 -9 ------- Run | Yrd Mat Min Sub Scr Combat Hostiles Destroyed 1 | . . . . 1 Melee 1 | . . . . 1 Classes Destroyed 3 | . . . 2 1 Artisan 1 | . . . 1 . Cobbler 1 | . . . 1 . Scrapper 1 | . . . . 1 Best Kill Streak 1 | . . . . 1 Combat Bots Only 1 | . . . . 1 Max Kills in Single Turn 1 | . . . 1 1 Gunslinging . | . . . . . Exploded . | . . . . . Melee 1 | . . . . 1 Uniques/NPCs Destroyed . | . . . . . Combat | -11 -10 -10 -10 -9 -------- Run | Yrd Mat Min Sub Scr Hostile Shots Fired 85 | . 3 63 . 19 Missed 21 | . . 15 . 6 Hits 64 | . 3 48 . 13 Projectile 64 | . 3 48 . 13 Critical Strikes 2 | . . . . 2 Damage Taken 717 | . 52 390 . 275 Core 268 | . 11 170 . 87 Absorbed by Shields . | . . . . . Core Remaining (%) 100 | 100 . . . . Volleys Fired 5 | . . 2 . 3 Largest 1 | . . 1 . 1 Hottest 40 | . . 40 . 30 Shots Fired 5 | . . 2 . 3 Gun 5 | . . 2 . 3 Cannon . | . . . . . Launcher . | . . . . . Special . | . . . . . Kinetic 3 | . . . . 3 Thermal . | . . . . . Explosive . | . . . . . Electromagnetic 2 | . . 2 . . Robot Hit Streak . | . . . . . Robot Miss Streak 2 | . . 2 . . Penetration Max . | . . . . . Secondary Targets . | . . . . . Shots Hit Robots 3 | . . . 2 1 Core Hits 5 | . . 3 1 1 Critical Kills . | . . . . . Critical Parts Destroyed . | . . . . . Critical Strikes . | . . . . . Melee Attacks 23 | . . 1 7 15 Impact . | . . . . . Slashing 23 | . . 1 7 15 Piercing . | . . . . . Sneak Attacks 2 | . . . 2 . Combat Hostiles . | . . . . . Follow-up Attacks . | . . . . . Damage Inflicted 192 | . . 11 144 37 Guns . | . . . . . Cannons . | . . . . . Explosions . | . . . . . Melee 181 | . . . 144 37 Ramming 11 | . . 11 . . Kinetic . | . . . . . Thermal . | . . . . . Explosive . | . . . . . Electromagnetic . | . . . . . Impact . | . . . . . Slashing 181 | . . . 144 37 Piercing . | . . . . . Highest Corruption . | . . . . . Average Corruption . | . . . . . Corruption Purged . | . . . . . Corruption Blocked . | . . . . . Overload Shots . | . . . . . Overflow Damage 43 | . . . 43 . Projectiles . | . . . . . Explosions . | . . . . . Melee 43 | . . . 43 . Knockbacks . | . . . . . Impact . | . . . . . Kinetic . | . . . . . Secondary . | . . . . . Self-Inflicted Damage . | . . . . . Shots . | . . . . . Rammed 12 | . . 12 . . Targets Rammed 12 | . . 12 . . Kicked . | . . . . . Crushed . | . . . . . Highest Temperature 66 | . . . . 66 Average Temperature 49 | . . . . 49 Received Heat Transfer 248 | . 30 24 . 194 Siege Activations . | . . . . . Martial Activations . | . . . . . Shielding Activations . | . . . . . Robots Disrupted . | . . . . . Combat Hostiles . | . . . . . Robots Corrupted . | . . . . . Combat Hostiles . | . . . . . Parts Fried . | . . . . . Impact Corruptions . | . . . . . Robots Melted . | . . . . . Combat Hostiles . | . . . . . Parts Melted 1 | . . . . 1 Heat Transferred . | . . . . . Parts Sabotaged . | . . . . . Parts Stolen . | . . . . . Parts Stripped . | . . . . . Power Chain Reactions . | . . . . . Alert | -11 -10 -10 -10 -9 ------- Run | Yrd Mat Min Sub Scr Maximum Alert Level . | . . . . . Low Security (%) 100 | 100 100 100 . . Level 1 . | . . . . . Level 2 . | . . . . . Level 3 . | . . . . . Level 4 . | . . . . . Level 5 . | . . . . . High Security . | . . . . . Max Security . | . . . . . Peak Influence 46 | . 15 46 . . Initial 1 | . . 1 . . Average 2 | . 1 5 . . Influence Increases 76 | . 15 61 . . Destroy Structure 1 | . . 1 . . Partial Spotted 30 | . 15 15 . . Lose Combat Pursuer 45 | . . 45 . . Influence Decreases 76 | . 10 20 46 . Entered New Map 29 | . . 4 25 . Time Decay 32 | . . 11 21 . Lost Part 15 | . 10 5 . . Squads Dispatched . | . . . . . Investigation . | . . . . . Extermination . | . . . . . Reinforcement . | . . . . . Assault . | . . . . . Garrison . | . . . . . Intercept . | . . . . . Searches Triggered . | . . . . . Construction Impeded . | . . . . . Haulers Reinforced . | . . . . . Active Scanning Responses . | . . . . . Cargo Convoy Interrupts . | . . . . . Stealth | -11 -10 -10 -10 -9 --------- Run | Yrd Mat Min Sub Scr Distress Signals 1 | . 1 . . . Communications Jammed . | . . . . . Distress Signals . | . . . . . Times Spotted 20 | . 2 5 1 12 Peak Tracking Total 5 | . 2 5 1 4 Tactical Retreats 2 | . . 1 . 1 Traps | -11 -10 -10 -10 -9 ------- Run | Yrd Mat Min Sub Scr Traps Triggered . | . . . . . Indirectly . | . . . . . Trap Hack Attempts . | . . . . . Triggered . | . . . . . Disarmed . | . . . . . Reprogrammed . | . . . . . Reused . | . . . . . Traps Extracted . | . . . . . Installed . | . . . . . Triggered . | . . . . . Most Traps Carried 1 | . . . . 1 Machines | -11 -10 -10 -10 -9 ---------- Run | Yrd Mat Min Sub Scr Machines Disabled 6 | . . . . 6 Max in Single Turn 1 | . . . . 1 Machines Repaired . | . . . . . Machines Dismantled . | . . . . . Machines Sabotaged . | . . . . . Overloaded Fab Kills . | . . . . . Hacking | -11 -10 -10 -10 -9 --------- Run | Yrd Mat Min Sub Scr Machines Accessed 2 | . . . . 2 Terminals . | . . . . . Fabricators . | . . . . . Repair Stations . | . . . . . Recycling Units . | . . . . . Scanalyzers . | . . . . . Garrison Access . | . . . . . Total Hacks 2 | . . . . 2 Successful 2 | . . . . 2 Failed . | . . . . . Catastrophic . | . . . . . Database Lockouts . | . . . . . Manual . | . . . . . Terminals . | . . . . . Fabricators . | . . . . . Repair Stations . | . . . . . Recycling Units . | . . . . . Scanalyzers . | . . . . . Garrison Access . | . . . . . Terminal Hacks 2 | . . . . 2 Record 1 | . . . . 1 Proto ID Catalog 1 | . . . . 1 Fabricator Hacks . | . . . . . Repair Station Hacks . | . . . . . Recycling Unit Hacks . | . . . . . Scanalyzer . | . . . . . Garrison Access Hacks . | . . . . . Unauthorized Hacks . | . . . . . Terminals . | . . . . . Fabricators . | . . . . . Repair Stations . | . . . . . Recycling Units . | . . . . . Scanalyzers . | . . . . . Garrison Access . | . . . . . Data Cores Recovered . | . . . . . Used . | . . . . . Hacking Detections . | . . . . . Full Trace Events . | . . . . . Feedback Events . | . . . . . Feedback Blocked . | . . . . . Robot Schematics Acquired . | . . . . . Robots Built . | . . . . . Authchips . | . . . . . Time . | . . . . . Total Robot Build Rating . | . . . . . Part Schematics Acquired . | . . . . . Parts Built . | . . . . . Authchips . | . . . . . Time . | . . . . . Total Part Build Rating . | . . . . . Part Studies Acquired . | . . . . . Parts Repaired . | . . . . . Time . | . . . . . Parts Recycled . | . . . . . Recycled Matter . | . . . . . Retrieved Matter . | . . . . . Retrieved Components . | . . . . . Parts Scanalyzed . | . . . . . Part Schematics Acquired . | . . . . . Parts Damaged . | . . . . . Bothacking | -11 -10 -10 -10 -9 ------------ Run | Yrd Mat Min Sub Scr Used RIF Installer . | . . . . . Robots Hacked . | . . . . . Non-combat . | . . . . . Combat . | . . . . . Robot Hacks Applied . | . . . . . Relay Couplers Released . | . . . . . Fabnet Peak Effective % . | . . . . . Robots Rewired . | . . . . . Allies Hacked . | . . . . . Hacks Repelled . | . . . . . Allies | -11 -10 -10 -10 -9 -------- Run | Yrd Mat Min Sub Scr Total Allies 1 | . . . . 1 Largest Group 1 | . . . . 1 Highest-Rated Group 86 | . . . . 86 Highest-Rated Ally 86 | . . . . 86 Total Orders . | . . . . . Ally Attacks 21 | . . . . 21 Total Damage 728 | . . . . 728 Kills 8 | . . . . 8 Allies Corrupted . | . . . . . Allies Melted 2 | . . . . 2 Intel | -11 -10 -10 -10 -9 ------- Run | Yrd Mat Min Sub Scr Active Infowar (turns) 4065 | . 66 97 344 3558 Structural 4065 | . 66 97 344 3558 Robot Analysis Total . | . . . . . Derelict Logs Recovered 1 | . . 1 . . Drone Launches . | . . . . . Drone Recoveries . | . . . . . Exploration | -11 -10 -10 -10 -9 ------------- Run | Yrd Mat Min Sub Scr Turns Passed 4459 | 55 118 97 344 3845 Spaces Moved 3541 | 34 118 158 363 2868 Core 8 | 8 . . . . Treads 1213 | 26 26 4 . 1157 Legs . | . . . . . Wheels . | . . . . . Hover 131 | . . . . 131 Flight 2189 | . 92 154 363 1580 Fastest Speed 37 | 50 37 37 37 37 Average Speed 112 | 134 64 40 37 127 Slowest Speed 277 | 160 160 160 37 277 Overloaded Moves . | . . . . . Propulsion Burnouts . | . . . . . Robots Hopped 3 | . 2 1 . . Potential Cave-ins . | . . . . . Cave-ins Triggered . | . . . . . Exploration Rate (%) 38 | 3 31 50 20 90 Regions Visited 4 Branch Regions 3 Pre-discovered Areas . | . . . . . Known Exits Taken . | . . . . . Unknown Exits Taken 4 | 1 1 1 1 . Scrap Searched 8 | . . . . 8 Spaces Dug 1 | . . 1 . . Terrain Destroyed 1 | . . 1 . . Melee 1 | . . 1 . . Projectile . | . . . . . AOE . | . . . . . Terrain Rammed . | . . . . . Walls Destroyed . | . . . . . Machines Disabled . | . . . . . Actions | -11 -10 -10 -10 -9 --------- Run | Yrd Mat Min Sub Scr Total 3992 | 41 157 177 565 3052 Wait 282 | 2 27 . 195 58 Move 3531 | 33 113 155 362 2868 Hop 3 | . 2 1 . . Pick Up 50 | . 6 1 1 42 Fast Attach 17 | 6 3 . . 8 Attach 5 | . 1 1 . 3 Detach 4 | . 3 . . 1 Swap 6 | . . 4 . 2 Drop 54 | . 2 . . 52 Fire 5 | . . 2 . 3 Melee 23 | . . 1 7 15 Ram . | . . . . . Kick . | . . . . . Crush 12 | . . 12 . . Escape Stasis . | . . . . . Rewire . | . . . . . Trap . | . . . . . Miscellaneous . | . . . . . Route ------- -11/Scrapyard -10/Materials -10/Mines -10/Subcaves -9/Scraptown (discovered 2 exits: [*Fac x2]) History --------- Turn | Location | Event 10 | -11/Scrapyard | Discovered new exit (range 15) 56 | -11/Scrapyard | Entered Materials 57 | -10/Materials | Met a group of wandering Federalists 167 | -10/Materials | Discovered new exit (range 13) 170 | -10/Materials | Lost 3 allies 174 | -10/Materials | Entered Mines 179 | -10/Mines | Met a Derelict bent on vengeance 197 | -10/Mines | A weapon hastily lodged in a ceiling crevice suddenly fell to the ground 241 | -10/Mines | Core integrity fell below 50% 263 | -10/Mines | Discovered new exit (range 13) 271 | -10/Mines | Entered Subcaves 272 | -10/Subcaves | Approached by a straggling Scientist 307 | -10/Subcaves | Build established: Mutant 518 | -10/Subcaves | Shifting Twisted Machinery released Battle Cannon 519 | -10/Subcaves | Shifting Twisted Machinery released Sub. Monowheel 615 | -10/Subcaves | Entered Scraptown 694 | -9/Scraptown | Discovered new exit (range 13) 740 | -9/Scraptown | Visited Red Mages 760 | -9/Scraptown | Visited SPCMW 774 | -9/Scraptown | Visited Symbiants 804 | -9/Scraptown | Visited Assassins FH 816 | -9/Scraptown | Heard Great Nut preacher, LISTEN AND RECITE! 872 | -9/Scraptown | Visited Cyclists 880 | -9/Scraptown | Visited Shadow of the Wyrm 885 | -9/Scraptown | Visited Bundlers 1027 | -9/Scraptown | Visited UFD Registry 1027 | -9/Scraptown | Registered with UFD as "Flakdisc" 1080 | -9/Scraptown | Visited Curators Association 1134 | -9/Scraptown | Visited Supply Room 1169 | -9/Scraptown | Visited Scrap Suit Storage 1422 | -9/Scraptown | Visited Derelict Rescue Squad 1438 | -9/Scraptown | Found DRS Beacon 1470 | -9/Scraptown | Visited Scrapoid Pod Storage 1479 | -9/Scraptown | Found Scrapoid Pod 1503 | -9/Scraptown | Visited Science Guys 1559 | -9/Scraptown | Visited Supply Room 1591 | -9/Scraptown | Visited A0-MCA Data Center 1600 | -9/Scraptown | Given a C rating by A0-MCA 1608 | -9/Scraptown | Found A0-MCA's Component Scanner 1644 | -9/Scraptown | Visited Botcube Research 2068 | -9/Scraptown | Found Scrap Suit 2089 | -9/Scraptown | Found Scrap Suit 3703 | -9/Scraptown | Found Lrg. Botcube 3745 | -9/Scraptown | Lrg. Botcube activated 3779 | -9/Scraptown | Lrg. Botcube completed mutation into treaded form, armed with 1 launcher, 2 special weapons. 4144 | -9/Scraptown | Discovered new exit (range 5) 4214 | -9/Scraptown | Met Optimus 4214 | -9/Scraptown | Accepted into 0bPrime 4246 | -9/Scraptown | Civil war broke out across Scraptown 4253 | -9/Scraptown | Found Prototype Processor 4278 | -9/Scraptown | Found Master Drone Bay 4411 | -9/Scraptown | Optimus destroyed in the chaos of civil war 4457 | -9/Scraptown | Core integrity fell below 20% 4460 | -9/Scraptown | Destroyed by DF-NVX(j) with Overtuned Pulse Rifle Last Messages --------------- 04354_ Slug penetrates Machine. 04355_ Dropped Flight Unit. 04356_ Acquired Airjet. 04358_ Acquired 20 matter. 04359_ Discarded Scrap Suit. 04360_ Acquired Mak. Light Armor Plating. 04361_ Acquired 10 matter. 04399_ Slug penetrates Botcube Storage. 04403_ Slug penetrates Reinforced Barrier. 04411_ ANNOUNCEMENT: The traitor Optimus has been dealt with. Put down any remaining collaborators. 04445_ Acquired 12 matter. 04446_ Acquired Lrg. Storage Unit. 04449_ Acquired Airjet. 04453_ Acquired 10 matter. 04456_ Critical hit (Burn: +50). 04457_ Acquired DRS Beacon. 04458_ PE-K8T(j) heat damages Ovr. Titanium Leg. 04459_ Critical hit (Burn: +50). Map ----- +----------------------------------------------------+ | | | | | | | | | | | | | | | | | | | | | ?????????????????????????????????????????????????? | | ?????????????????????????????????????????????????? | | ?????????????????????????????????????????????????? | | ?????????????????????????????????????????????????? | | ?????????????????????????????????????????????????? | | ?????????????????????????????????????????????????? | | ?????????????????????????????????????????????????? | | ?????????????????????????????????????????????????? | | ?????????????????????????????????????????????????? | | ?????????????????????????????????????????????????? | | ???????????????????????#######???????????????????? | | ???????????????????????#######???????????????????? | | #############?######???##"""##???????????????????? | | #####################??##"!"##???????????????????? | | "##""|##"""##### #######jjj###??????????????????? | | ##"" ##!!"#### ######@!=###??????????????????? | | [!]]| !;#??????????????????? | | =% % %##??????????????????? | | ############### #######;####??????????????????? | | ################ ######## #####?????????????????? | | ####?????????### ##############?????????????????? | | #####?????????## #"""""""""""##?????????????????? | | """##?????????## #""""" X """##?????????????????? | | """##?????????## #""" """"##?????????????????? | | """############# #" = ""##?????????????????? | | """############# #""" """"##?????????????????? | | """### """ ## #""" ""##?????????????????? | | """### "" *" ## #"" ##?????????????????? | | "### "" * ## #"" "" " ##?????????????????? | | """### "" "## #"" "" " ##?????????????????? | | """###" " ## # "##?????????????????? | | ###" ## #" ##?????????????????? | | ########## ##### ## ###########?????????????????? | | ########## ##### ##/###########?????????????????? | | "" " " "! [" " " "" ##"""""#"??????????????????? | | =*%%%/=% "## "#"??????????????????? | | %!=[!= "## "#"??????????????????? | | *!= !! ## "#"??????????????????? | | ## "#"??????????????????? | | %= "#"??????????????????? | +----------------------------------------------------+ Best States ------------- Heat Dissipation 25 Energy Generation 10 Energy Capacity 250 Matter Stores 300 Matter Capacity 300 Sight Range 16 Terrain Scan Density 10 Armor Coverage 100 Evasion (%) 62 Recoil Reduction 2 Item Schematics ----------------- None Robot Schematics ------------------ None Fabricated ------------ Nothing Repaired ---------- Nothing Studied --------- None Alien Tech Used ----------------- None Achievements -------------- None Challenges ------------ None Game ------ Seed GuidedZipCharge Manual? 0 Play Time 00:24:23 Cumulative 506.4 hours Start 2025.11.05 @ 13:38:16 End 2025.11.05 @ 14:08:21 Sessions 1 Manual Loads 0 Difficulty Rogue Special Mode None Game No. 843 Rogue 688 Adventurer 148 Explorer 7 Win Type - Total 24 Types 19/1/3/1/0/0/0/0/0/0 Lore% 75 Gallery% 78 Achievement% 61 Wizard Run 0 Options --------- Layout 1 ASCII 0 Keyboard 0 Movement Numpad Keybinds 0 Fullscreen 2 Font 24/Smallcaps Map View 50x35 Zoom Use 0% Tactical HUD 1 Map Filters NONE Filters NONE Steam 1 RUN: 175465d7-0c8d-4ade-a2ef-18490b7d9079